fUST/lending_fUST_20250825
["ID","MTS","AMOUNT","RATE_DAILY","PERIOD"]
[381288469,1756126875602,-3398.84,0.00044109,120]
[381288470,1756126875642,-480.0,0.00044109,120]
[381288471,1756126875681,-933.93,0.00044109,120]
[381288472,1756126875721,-487.78,0.00044109,120]
[381288473,1756126875764,-32087.34,0.00044109,120]
[381288474,1756126875805,-1750.21,0.00044109,120]
[381288475,1756126875845,-606.0,0.00044109,120]
[381288476,1756126875886,-484.33,0.00044109,120]
[381288477,1756126875928,-646.24,0.00044109,120]
[381288478,1756126875973,-480.0,0.00044109,120]
[381288479,1756126876017,-5532.51,0.00044109,120]
[381288480,1756126876059,-1105.24,0.00044109,120]
[381288481,1756126876102,-2082.95,0.00044109,120]
[381288482,1756126876141,-492.52,0.00044109,120]
[381288483,1756126876184,-1012.97,0.00044109,120]
[381288484,1756126876227,-515.04,0.00044109,120]
[381288485,1756126876269,-759.39,0.00044109,120]
[381288486,1756126876313,-480.0,0.00044109,120]
[381288487,1756126876357,-1098.76,0.00044109,120]
[381288488,1756126876401,-641.0,0.00044109,120]
[381288489,1756126876447,-545.33794472,0.00044109,120]
[381288490,1756126876494,-991.36,0.00044109,60]
[381288491,1756126876542,-1160.57,0.00044109,120]
[381288492,1756126876589,-4721.68,0.00044109,120]
[381288493,1756126876635,-5758.69,0.00044109,120]
[381288494,1756126876682,-2222.09,0.00044109,120]
[381288495,1756126876726,-2880.2,0.00044109,120]
[381288496,1756126876771,-480.0,0.00044109,120]
[381288497,1756126876817,-480.0,0.00044109,120]
[381288498,1756126876864,-722.84,0.00044109,120]
[381288499,1756126876910,-480.0,0.00044109,120]
[381288500,1756126876956,-519.53,0.00044109,120]
[381288501,1756126877013,-1837.05,0.00044109,120]
[381288502,1756126877066,-754.08,0.00044109,120]
[381288503,1756126877113,-537.85,0.00044109,120]
[381288504,1756126877159,-480.0,0.00044383,120]
[381288505,1756126877205,-480.0,0.00044383,120]
[381288506,1756126877411,-480.0,0.00044383,120]
[381288507,1756126877453,-480.0,0.00044383,120]
[381288508,1756126877496,-480.0,0.00044383,120]
[381288509,1756126877541,-699.42,0.00044383,120]
[381288510,1756126877585,-498.32,0.00044383,120]
[381288511,1756126877628,-747.73,0.00044383,120]
[381288512,1756126877670,-480.0,0.00044383,120]
[381288513,1756126877712,-607.22,0.00044383,120]
[381288514,1756126877757,-845.88,0.00044383,120]
[381288515,1756126877804,-894.54,0.00044383,120]
[381288516,1756126877849,-464.69862692,0.00044383,120]
[381288517,1756126877894,-503.39,0.00044383,120]
[381288518,1756126877938,-480.0,0.00044383,120]
[381288519,1756126877985,-759.54,0.00044383,120]
[381288520,1756126878031,-660.27,0.00044383,120]
[381288521,1756126878080,-480.0,0.00044383,120]
[381288522,1756126878127,-671.3,0.00044383,120]
[381288523,1756126878173,-740.62,0.00044383,120]
[381288524,1756126878219,-1353.62,0.00044383,120]
[381288525,1756126878267,-912.48,0.00044383,120]
[381288526,1756126878313,-878.72,0.00044383,120]
[381288527,1756126878363,-480.0,0.00044383,120]
[381288528,1756126878408,-1189.95,0.00044383,120]
[381288529,1756126878450,-480.0,0.00044383,120]
[381288530,1756126878492,-936.4,0.00044383,120]
[381288531,1756126878534,-1118.38,0.00044383,120]
[381288532,1756126878577,-1113.23,0.00044383,120]
[381288533,1756126878620,-825.51,0.00044383,120]
[381288534,1756126878663,-1185.16,0.00044383,120]
[381288535,1756126878704,-589.51,0.00044383,120]
[381288536,1756126878747,-556.17,0.00044383,120]
[381288537,1756126878792,-480.0,0.00044383,120]
[381288538,1756126878837,-884.3,0.00044383,120]
[381288539,1756126878881,-686.06,0.00044383,120]
[381288540,1756126878925,-480.0,0.00044383,120]
[381288541,1756126878972,-495.13,0.00044383,120]
[381288542,1756126879017,-610.93,0.00044383,120]
[381288543,1756126879059,-482.36,0.00044383,120]
[381288544,1756126879102,-480.0,0.00044383,120]
[381288545,1756126879145,-850.54,0.00044383,120]
[381288546,1756126879188,-715.89,0.00044383,120]
[381288547,1756126879230,-1606.61,0.00044383,120]
[381288548,1756126879274,-1684.16,0.00044383,120]
[381288549,1756126879315,-547.94,0.00044383,120]
[381288550,1756126879358,-593.25,0.00044383,120]
[381288551,1756126879400,-689.16,0.00044383,120]
[381288552,1756126879441,-480.0,0.00044383,120]
[381288553,1756126879482,-579.51,0.00044383,120]
[381288554,1756126879524,-480.0,0.00044383,120]
[381288555,1756126879566,-480.0,0.00044383,120]
[381288556,1756126879607,-480.0,0.00044383,120]
[381288557,1756126879649,-1931.57,0.00044383,120]
[381288558,1756126879697,-1239.72,0.00044383,120]
[381288559,1756126879743,-480.0,0.00044383,120]
[381288560,1756126879789,-2209.87,0.00044383,120]
[381288561,1756126879834,-929.85,0.00044383,120]
[381288562,1756126879877,-480.0,0.00044383,120]
[381288563,1756126879917,-573.12,0.00044383,120]
[381288564,1756126879959,-920.67,0.00044383,120]
[381288565,1756126880005,-727.5,0.00044383,120]
[381288566,1756126880051,-480.0,0.00044383,120]
[381288567,1756126880096,-480.0,0.00044383,120]
[381288568,1756126880139,-480.0,0.00044383,120]
[381288569,1756126880179,-542.09,0.00044383,120]
[381288570,1756126880218,-960.62,0.00044383,120]
[381288571,1756126880256,-1161.07,0.00044383,120]
[381288572,1756126880295,-480.0,0.00044383,120]
[381288573,1756126880333,-480.0,0.00044383,120]
[381288574,1756126880370,-480.0,0.00044383,120]
[381288575,1756126880408,-1571.16,0.00044383,120]
[381288576,1756126880447,-956.49,0.00044383,120]
[381288577,1756126880488,-621.03,0.00044383,120]
[381288578,1756126880527,-669.29,0.00044383,120]
[381288579,1756126880565,-1188.59,0.00044383,120]
[381288580,1756126880603,-1297.99,0.00044383,120]
[381288581,1756126880644,-774.78,0.00044383,120]
[381288582,1756126880684,-480.0,0.00044383,120]
[381288583,1756126880725,-881.29,0.00044383,120]
[381288584,1756126880767,-505.82,0.00044383,120]
[381288585,1756126880807,-480.0,0.00044383,120]
[381288586,1756126880846,-1413.93,0.00044383,120]
[381288587,1756126880885,-480.0,0.00044383,120]
[381288588,1756126880925,-743.01,0.00044383,120]
[381288589,1756126880966,-549.23,0.00044383,120]
[381288590,1756126881012,-480.0,0.00044383,120]
[381288591,1756126881052,-605.34,0.00044383,120]
[381288592,1756126881090,-1149.42,0.00044383,120]
[381288593,1756126881127,-480.0,0.00044383,120]
[381288594,1756126881167,-1277.61,0.00044383,120]
[381288595,1756126881206,-1439.88,0.00044383,120]
[381288596,1756126881244,-878.22,0.00044383,120]
[381288597,1756126881284,-822.59,0.00044383,120]
[381288598,1756126881322,-480.0,0.00044383,120]
[381288599,1756126881360,-1045.63,0.00044383,120]
[381288600,1756126881399,-491.9,0.00044383,120]
[381288601,1756126881439,-563.53,0.00044383,120]
[381288602,1756126881480,-1412.42,0.00044383,120]
[381288603,1756126881526,-1742.12,0.00044383,120]
[381288604,1756126881570,-3909.96,0.00044383,120]
[381288605,1756126881775,-688.96,0.00044383,120]
[381288606,1756126881818,-550.64,0.00044383,120]
[381288607,1756126881860,-628.26,0.00044383,120]
[381288608,1756126881901,-480.0,0.00044383,120]
[381288609,1756126881943,-506.78,0.00044383,120]
[381288610,1756126881987,-1206.33,0.00044383,120]
[381288611,1756126882029,-1727.87,0.00044383,120]
[381288612,1756126882073,-579.58,0.00044383,120]
[381288613,1756126882116,-480.0,0.00044383,120]
[381288614,1756126882159,-480.0,0.00044383,120]
[381288615,1756126882201,-480.0,0.00044383,120]
[381288616,1756126882244,-480.0,0.00044383,120]
[381288617,1756126882285,-480.0,0.00044383,120]
[381288618,1756126882324,-527.55,0.00044383,120]
[381288619,1756126882364,-480.0,0.00044383,120]
[381288620,1756126882404,-1790.75,0.00044383,120]
[381288621,1756126882443,-1248.92,0.00044383,120]
[381288622,1756126882485,-480.0,0.00044383,120]
[381288623,1756126882526,-692.37,0.00044383,120]
[381288624,1756126882565,-836.57,0.00044383,120]
[381288625,1756126882605,-4667.32,0.00044383,120]
[381288626,1756126882645,-557.41,0.00044383,120]
[381288627,1756126882684,-1221.05,0.00044383,120]
[381288628,1756126882724,-755.37,0.00044383,120]
[381288629,1756126882763,-480.0,0.00044383,120]
[381288630,1756126882804,-986.08,0.00044383,120]
[381288631,1756126882845,-747.3,0.00044383,120]
[381288632,1756126882883,-3173.1,0.00044383,120]
[381288633,1756126882920,-620.02,0.00044383,120]
[381288634,1756126882959,-1130.37,0.00044383,120]
[381288635,1756126883003,-218.42918,0.00044383,120]
[381288636,1756126883046,-480.0,0.00044383,120]
[381288637,1756126883093,-569.35,0.00044383,120]
[381288638,1756126883134,-727.52,0.00044383,120]
[381288639,1756126883176,-825.61,0.00044383,120]
[381288640,1756126883218,-2292.16,0.00044383,120]
[381288641,1756126883263,-480.0,0.00044383,120]
[381288642,1756126883305,-669.15,0.00044383,120]
[381288643,1756126883343,-603.91766257,0.00044383,120]
[381288644,1756126883380,-2069.49,0.00044383,120]
[381288645,1756126883417,-480.0,0.00044383,120]
[381288646,1756126883455,-1273.34,0.00044383,120]
[381288647,1756126883491,-711.39,0.00044383,120]
[381288648,1756126883530,-1403.13,0.00044383,120]
[381288649,1756126883568,-2829.89,0.00044383,120]
[381288650,1756126883606,-914.55,0.00044383,120]
[381288651,1756126883644,-480.0,0.00044383,120]
[381288652,1756126883683,-624.32,0.00044383,120]
[381288653,1756126883722,-1073.69,0.00044383,120]
[381288654,1756126883761,-480.0,0.00044383,120]
[381288655,1756126883803,-732.1,0.00044383,120]
[381288656,1756126883844,-1658.57,0.00044383,120]
[381288657,1756126883886,-663.97,0.00044383,120]
[381288658,1756126883930,-997.45,0.00044383,120]
[381288659,1756126883975,-4726.93,0.00044383,120]
[381288660,1756126884018,-480.0,0.00044383,120]
[381288661,1756126884060,-2182.29,0.00044383,120]
[381288662,1756126884101,-487.94,0.00044383,120]
[381288663,1756126884143,-896.66,0.00044383,120]
[381288664,1756126884185,-847.75,0.00044383,120]
[381288665,1756126884228,-654.73,0.00044383,120]
[381288666,1756126884274,-1036.77,0.00044383,120]
[381288667,1756126884316,-480.0,0.00044383,120]
[381288668,1756126884359,-37374.97,0.00044383,120]
[381288669,1756126884401,-490.9,0.00044383,120]
[381288670,1756126884440,-5909.94,0.00044383,120]
[381288671,1756126884481,-1676.25,0.00044383,120]
[381288672,1756126884521,-480.0,0.00044383,120]
[381288673,1756126884561,-480.0,0.00044383,120]
[381288674,1756126884600,-480.0,0.00044383,120]
[381288675,1756126884639,-480.0,0.00044383,120]
[381288676,1756126884679,-1637.12,0.00044383,120]
[381288677,1756126884719,-480.0,0.00044383,120]
[381288678,1756126884759,-1896.62,0.00044383,120]
[381288679,1756126884800,-1185.69,0.00044383,120]
[381288680,1756126884841,-1152.59,0.00044383,120]
[381288681,1756126884881,-1070.09,0.00044383,120]
[381288682,1756126884920,-784.62,0.00044383,120]
[381288683,1756126884960,-509.48,0.00044383,120]
[381288684,1756126885008,-527.03,0.00044383,120]
[381288685,1756126885053,-480.0,0.00044383,120]
[381288686,1756126885094,-1022.88,0.00044383,120]
[381288687,1756126885134,-862.48,0.00044383,120]
[381288688,1756126885172,-771.76,0.00044383,120]
[381288689,1756126885210,-604.83,0.00044383,120]
[381288690,1756126885250,-1446.12,0.00044383,120]
[381288691,1756126885290,-614.96,0.00044383,120]
[381288692,1756126885328,-863.05,0.00044383,120]
[381288693,1756126885367,-815.47,0.00044383,120]
[381288694,1756126885405,-1720.85,0.00044383,120]
[381288695,1756126885442,-766.09,0.00044383,120]
[381288696,1756126885480,-1405.89,0.00044383,120]
[381288697,1756126885516,-2204.55,0.00044383,120]
[381288698,1756126885552,-480.0,0.00044383,120]
[381288699,1756126885589,-631.79,0.00044383,120]
[381288700,1756126885629,-480.0,0.00044383,120]
[381288701,1756126885829,-1286.07,0.00044383,120]
[381288702,1756126885874,-480.0,0.00044383,120]
[381288703,1756126885915,-3309.78,0.00044383,120]
[381288704,1756126885955,-480.0,0.00044383,120]
[381288705,1756126886001,-8939.69,0.00044383,120]
[381288706,1756126886042,-782.03,0.00044383,120]
[381288707,1756126886083,-1045.84,0.00044383,120]
[381288708,1756126886121,-4901.35,0.00044383,120]
[381288709,1756126886159,-480.0,0.00044383,120]
[381288710,1756126886198,-3746.72,0.00044383,120]
[381288711,1756126886239,-1364.71,0.00044383,120]
[381288712,1756126886277,-2336.61,0.00044383,120]
[381288713,1756126886317,-480.0,0.00044383,120]
[381288714,1756126886357,-2298.35,0.00044383,120]
[381288715,1756126886399,-692.84,0.00044383,120]
[381288716,1756126886443,-480.0,0.00044383,120]
[381288717,1756126886483,-480.0,0.00044383,120]
[381288718,1756126886524,-748.2,0.00044383,120]
[381288719,1756126886564,-480.0,0.00044383,120]
[381288720,1756126886603,-480.0,0.00044383,120]
[381288721,1756126886643,-1497.52,0.00044383,120]
[381288722,1756126886682,-627.58,0.00044383,120]
[381288723,1756126886722,-3124.04,0.00044383,120]
[381288724,1756126886762,-480.0,0.00044383,120]
[381288725,1756126886803,-2186.25,0.00044383,120]
[381288726,1756126886844,-1589.2,0.00044383,120]
[381288727,1756126886885,-865.69,0.00044383,120]
[381288728,1756126886926,-480.0,0.00044383,120]
[381288729,1756126886968,-668.63,0.00044383,120]
[381288730,1756126887013,-1700.64,0.00044383,120]
[381288731,1756126887056,-1853.9,0.00044383,120]
[381288732,1756126887098,-1233.38,0.00044383,120]
[381288733,1756126887140,-480.0,0.00044383,120]
[381288734,1756126887182,-843.91,0.00044383,120]
[381288735,1756126887223,-820.84,0.00044383,120]
[381288736,1756126887263,-480.0,0.00044383,120]
[381288737,1756126887305,-509.16,0.00044383,120]
[381288738,1756126887344,-3188.54,0.00044383,120]
[381288739,1756126887383,-687.95,0.00044383,120]
[381288740,1756126887422,-1293.99,0.00044383,120]
[381288741,1756126887462,-1335.79,0.00044383,120]
[381288742,1756126887500,-480.0,0.00044383,120]
[381288743,1756126887539,-480.0,0.00044383,120]
[381288744,1756126887581,-1304.07,0.00044383,120]
[381288745,1756126887630,-480.0,0.00044383,120]
[381288746,1756126887671,-3079.65,0.00044383,120]
[381288747,1756126887720,-1864.32,0.00044383,120]
[381288748,1756126887766,-536.76,0.00044383,120]
[381288749,1756126887814,-683.57,0.00044383,120]
[381288750,1756126887854,-480.0,0.00044383,120]
[381288751,1756126887895,-1315.65,0.00044383,120]
[381288752,1756126887936,-2414.52,0.00044383,120]
[381288753,1756126887978,-1292.83,0.00044383,120]
[381288754,1756126888027,-1960.81,0.00044383,120]
[381288755,1756126888071,-480.0,0.00044383,120]
[381288756,1756126888113,-597.75,0.00044383,120]
[381288757,1756126888153,-903.95,0.00044383,120]
[381288758,1756126888193,-480.0,0.00044383,120]
[381288759,1756126888234,-755.2,0.00044383,120]
[381288760,1756126888276,-1000.0,0.00044383,120]
[381288761,1756126888316,-905.54,0.00044383,120]
[381288762,1756126888358,-19614.7,0.00044383,120]
[381288763,1756126888399,-480.0,0.00044383,120]
[381288764,1756126888439,-920.94,0.00044383,120]
[381288765,1756126888483,-25474.36,0.00044383,120]
[381288766,1756126888527,-682.89,0.00044383,120]
[381288767,1756126888577,-1803.64,0.00044383,120]
[381288768,1756126888619,-517.61,0.00044383,120]
[381288769,1756126888660,-185.4700085,0.00044383,120]
[381288770,1756126888701,-4080.09,0.00044383,120]
[381288771,1756126888745,-965.82,0.00044383,120]
[381288772,1756126888791,-480.0,0.00044383,120]
[381288773,1756126888839,-3213.62,0.00044383,120]
[381288774,1756126888885,-1010.84,0.00044383,120]
[381288775,1756126888929,-594.53,0.00044383,120]
[381288776,1756126888979,-1632.43,0.00044383,120]
[381288777,1756126889025,-537.64,0.00044383,120]
[381288778,1756126889067,-5997.75,0.00044383,120]
[381288779,1756126889110,-966.7,0.00044383,120]
[381288780,1756126889152,-527.05,0.00044383,120]
[381288781,1756126889195,-3476.32,0.00044383,120]
[381288782,1756126889237,-640.67,0.00044383,120]
[381288783,1756126889278,-480.0,0.00044383,120]
[381288784,1756126889320,-659.23,0.00044383,120]
[381288785,1756126889361,-604.56,0.00044383,120]
[381288786,1756126889402,-480.0,0.00044383,120]
[381288787,1756126889442,-673.78,0.00044383,120]
[381288788,1756126889483,-480.0,0.00044383,120]
[381288789,1756126889523,-1408.09,0.00044383,120]
[381288790,1756126889561,-594.97,0.00044383,120]
[381288791,1756126889599,-725.22,0.00044383,120]
[381288792,1756126889638,-758.37,0.00044383,120]
[381288793,1756126889837,-480.0,0.00044383,120]
[381288794,1756126889879,-480.0,0.00044383,120]
[381288795,1756126889920,-492.09,0.00044383,120]
[381288796,1756126889964,-5609.95,0.00044383,120]
[381288797,1756126890017,-491.39,0.00044383,120]
[381288798,1756126890062,-750.67,0.00044383,120]
[381288799,1756126890112,-626.84,0.00044383,120]
[381288800,1756126890163,-480.0,0.00044383,120]
[381288801,1756126890214,-1629.79,0.00044383,120]
[381288802,1756126890267,-827.22,0.00044383,120]
[381288803,1756126890328,-9745.05,0.00044383,120]
[381288804,1756126890380,-3207.29,0.00044383,120]
[381288805,1756126890426,-435.60249108,0.00044383,120]
[381288806,1756126890475,-1678.54,0.00044383,120]
[381288807,1756126890517,-733.03,0.00044383,120]
[381288808,1756126890565,-480.0,0.00044383,120]
[381288809,1756126890616,-561.22,0.00044383,120]
[381288810,1756126890657,-4998.35,0.00044383,120]
[381288811,1756126890699,-480.0,0.00044383,120]
[381288812,1756126890745,-15401.82,0.00044383,120]
[381288813,1756126890787,-1149.92,0.00044383,120]
[381288814,1756126890835,-598.38,0.00044383,120]
[381288815,1756126890888,-7304.26,0.00044383,120]
[381288816,1756126890931,-1274.15,0.00044383,120]
[381288817,1756126890981,-480.0,0.00044383,120]
[381288818,1756126891032,-770.82,0.00044383,120]
[381288819,1756126891083,-481.54,0.00044383,120]
[381288820,1756126891135,-1375.84,0.00044383,120]
[381288821,1756126891182,-775.25,0.00044383,120]
[381288822,1756126891223,-11767.25,0.00044383,120]
[381288823,1756126891265,-480.0,0.00044383,120]
[381288824,1756126891306,-1309.42,0.00044383,120]
[381288825,1756126891348,-1975.28,0.00044383,120]
[381288826,1756126891394,-1147.44,0.00044383,120]
[381288827,1756126891443,-955.26,0.00044383,120]
[381288828,1756126891482,-480.0,0.00044383,120]
[381288829,1756126891522,-444.46179425,0.00044383,120]
[381288830,1756126891562,-9545.23,0.00044383,120]
[381288831,1756126891602,-953.58,0.00044383,120]
[381288832,1756126891641,-480.0,0.00044383,120]
[381288833,1756126891680,-1257.15,0.00044383,120]
[381288834,1756126891719,-1137.32,0.00044383,120]
[381288835,1756126891758,-1015.19,0.00044383,120]
[381288836,1756126891797,-962.42,0.00044383,120]
[381288837,1756126891837,-480.0,0.00044383,120]
[381288838,1756126891879,-751.4,0.00044383,120]
[381288839,1756126891920,-3650.06,0.00044383,120]
[381288840,1756126891962,-480.0,0.00044383,120]
[381288841,1756126892011,-480.0,0.00044383,120]
[381288842,1756126892054,-480.0,0.00044383,120]
[381288843,1756126892095,-2088.99,0.00044383,120]
[381288844,1756126892137,-480.0,0.00044383,120]
[381288845,1756126892179,-555.81,0.00044383,120]
[381288846,1756126892220,-1601.92,0.00044383,120]
[381288847,1756126892263,-480.0,0.00044383,120]
[381288848,1756126892531,-480.0,0.00044383,120]
[381288849,1756126892573,-3802.35,0.00044383,120]
[381288850,1756126892614,-480.0,0.00044383,120]
[381288851,1756126892654,-480.0,0.00044383,120]
[381288852,1756126892698,-264.25375616,0.00044383,120]
[381288853,1756126892738,-885.47,0.00044383,120]
[381288854,1756126892785,-480.0,0.00044383,120]
[381288855,1756126892831,-1575.16,0.00044383,120]
[381288856,1756126892875,-498.97,0.00044383,120]
[381288857,1756126892917,-1216.81,0.00044383,120]
[381288858,1756126892961,-480.0,0.00044383,120]
[381288859,1756126893015,-1333.13,0.00044383,120]
[381288860,1756126893063,-589.58,0.00044383,120]
[381288861,1756126893107,-539.63,0.00044383,120]
[381288862,1756126893149,-1232.99,0.00044383,120]
[381288863,1756126893192,-946.1,0.00044383,120]
[381288864,1756126893236,-1030.64,0.00044383,120]
[381288865,1756126893280,-4780.9,0.00044383,120]
[381288866,1756126893322,-2338.36,0.00044383,120]
[381288867,1756126893364,-342.46254996,0.00044383,120]
[381288868,1756126893411,-15112.0,0.00044383,120]
[381288869,1756126893455,-1727.97,0.00044383,120]
[381288870,1756126893496,-480.0,0.00044383,120]
[381288871,1756126893539,-1347.42,0.00044383,120]
[381288872,1756126893581,-577.89,0.00044383,120]
[381288873,1756126893624,-480.0,0.00044383,120]
[381288874,1756126893666,-301.4,0.00044383,120]
[381288875,1756126893707,-1041.93,0.00044383,120]
[381288876,1756126893751,-5529.63,0.00044383,120]
[381288877,1756126893794,-480.0,0.00044383,120]
[381288878,1756126893838,-427.28486019,0.00044383,120]
[381288879,1756126893882,-3398.84,0.00044383,120]
[381288880,1756126893926,-508.97911067,0.00044383,120]
[381288881,1756126893970,-933.93,0.00044383,120]
[381288882,1756126894168,-487.78,0.00044383,120]
[381288883,1756126894219,-32087.34,0.00044383,120]
[381288884,1756126894262,-1750.21,0.00044383,120]
[381288885,1756126894306,-606.0,0.00044383,120]
[381288886,1756126894348,-484.33,0.00044383,120]
[381288887,1756126894391,-646.24,0.00044383,120]
[381288888,1756126894432,-480.0,0.00044383,120]
[381288889,1756126894475,-5532.51,0.00044383,120]
[381288890,1756126894517,-1105.24,0.00044383,120]
[381288891,1756126894560,-2082.95,0.00044383,120]
[381288892,1756126894602,-492.52,0.00044383,120]
[381288893,1756126894643,-1012.97,0.00044383,120]
[381288894,1756126894683,-759.39,0.00044383,120]
[381288895,1756126894723,-480.0,0.00044383,120]
[381288896,1756126894763,-515.04,0.00044383,120]
[381288897,1756126894805,-1098.76,0.00044383,120]
[381288898,1756126894845,-641.0,0.00044383,120]
[381288899,1756126894887,-991.36,0.00044383,60]
[381288900,1756126894928,-1160.57,0.00044383,120]
[381288901,1756126894970,-4721.68,0.00044383,120]
[381288902,1756126895017,-5758.69,0.00044383,120]
[381288903,1756126895060,-2222.09,0.00044383,120]
[381288904,1756126895101,-2880.2,0.00044383,120]
[381288905,1756126895142,-480.0,0.00044383,120]
[381288906,1756126895184,-480.0,0.00044383,120]
[381288907,1756126895225,-722.84,0.00044383,120]
[381288908,1756126895267,-480.0,0.00044383,120]
[381288909,1756126895309,-519.53,0.00044383,120]
[381288910,1756126895350,-1837.05,0.00044383,120]
[381288911,1756126895393,-754.08,0.00044383,120]
[381288912,1756126895441,-537.85,0.00044383,120]
[381288913,1756126895486,-2200.0,0.0004453,60]
[381288914,1756126895532,-152.0,0.000446,120]
[381288915,1756126895576,-480.0,0.00044657,120]
[381288916,1756126895620,-480.0,0.00044657,120]
[381288917,1756126895664,-480.0,0.00044657,120]
[381288918,1756126895707,-480.0,0.00044657,120]
[381288919,1756126895749,-480.0,0.00044657,120]
[381288920,1756126895790,-699.42,0.00044657,120]
[381288921,1756126895832,-498.32,0.00044657,120]
[381288922,1756126895874,-747.73,0.00044657,120]
[381288923,1756126895918,-480.0,0.00044657,120]
[381288924,1756126895961,-607.22,0.00044657,120]
[381288925,1756126896013,-845.88,0.00044657,120]
[381288926,1756126896058,-894.54,0.00044657,120]
[381288927,1756126896101,-503.39,0.00044657,120]
[381288928,1756126896144,-480.0,0.00044657,120]
[381288929,1756126896187,-759.54,0.00044657,120]
[381288930,1756126896229,-660.27,0.00044657,120]
[381288931,1756126896271,-480.0,0.00044657,120]
[381288932,1756126896315,-671.3,0.00044657,120]
[381288933,1756126896357,-740.62,0.00044657,120]
[381288934,1756126896399,-1353.62,0.00044657,120]
[381288935,1756126896442,-912.48,0.00044657,120]
[381288936,1756126896484,-878.72,0.00044657,120]
[381288937,1756126896526,-480.0,0.00044657,120]
[381288938,1756126896569,-1189.95,0.00044657,120]
[381288939,1756126896611,-480.0,0.00044657,120]
[381288940,1756126896652,-936.4,0.00044657,120]
[381288941,1756126896693,-1118.38,0.00044657,120]
[381288942,1756126896733,-1113.23,0.00044657,120]
[381288943,1756126896775,-825.51,0.00044657,120]
[381288944,1756126896818,-1185.16,0.00044657,120]
[381288945,1756126896860,-589.51,0.00044657,120]
[381288946,1756126896902,-556.17,0.00044657,120]
[381288947,1756126896944,-480.0,0.00044657,120]
[381288948,1756126896987,-884.3,0.00044657,120]
[381288949,1756126897030,-686.06,0.00044657,120]
[381288950,1756126897073,-480.0,0.00044657,120]
[381288951,1756126897116,-495.13,0.00044657,120]
[381288952,1756126897158,-610.93,0.00044657,120]
[381288953,1756126897201,-482.36,0.00044657,120]
[381288954,1756126897244,-480.0,0.00044657,120]
[381288955,1756126897287,-850.54,0.00044657,120]
[381288956,1756126897328,-715.89,0.00044657,120]
[381288957,1756126897369,-1606.61,0.00044657,120]
[381288958,1756126897410,-1684.16,0.00044657,120]
[381288959,1756126897451,-547.94,0.00044657,120]
[381288960,1756126897490,-593.25,0.00044657,120]
[381288961,1756126897528,-689.16,0.00044657,120]
[381288962,1756126897568,-480.0,0.00044657,120]
[381288963,1756126897607,-579.51,0.00044657,120]
[381288964,1756126897645,-480.0,0.00044657,120]
[381288965,1756126897684,-262.31448812,0.00044657,120]
[381288966,1756126897723,-480.0,0.00044657,120]
[381288967,1756126897763,-1931.57,0.00044657,120]
[381288968,1756126897804,-1239.72,0.00044657,120]